bitfinex-derivatives/quotes_SOLF0:USTF0_20251018
["timestamp","ask_amount","ask_price","bid_price","bid_amount"]
[1760796416464,2.72,184.92,184.8,45.04]
[1760796416661,9.7285,184.98,184.81,45.04]
[1760796416662,2.72,184.98,184.81,45.04]
[1760796416965,5.0366602,184.99,184.72,101.7524]
[1760796416966,2.72,184.96,184.82,45.04]
[1760796417165,2.72,184.96,184.83,35.86]
[1760796417367,7.5854,184.93,184.84,45.04]
[1760796417563,7.5854,184.93,184.85,45.04]
[1760796417870,7.5854,184.93,184.86,45.04]
[1760796418072,6.96467255,184.98,184.86,45.04]
[1760796418263,5.0366602,185.01,184.86,45.04]
[1760796418264,2.72,185.01,184.86,45.04]
[1760796418867,2.72,185.01,184.87,62.0]
[1760796419064,7.5835,185.01,184.91,4.8657]
[1760796419461,2.72,185.05,184.87,62.0]
[1760796419674,4.24581917,185.04,184.87,62.0]
[1760796419973,2.72,185.01,184.87,62.0]
[1760796420171,2.72,185.05,184.88,45.06]
[1760796420364,4.8652,184.94,184.88,45.06]
[1760796420566,2.72,184.95,184.88,45.06]
[1760796420761,5.0366602,184.99,184.79,140.16]
[1760796420965,2.72,184.9,184.79,140.16]
[1760796421167,5.0366602,184.96,184.78,45.08]
[1760796421362,4.24499785,184.95,184.78,45.08]
[1760796421565,6.96499785,184.94,184.78,45.08]
[1760796421773,2.72,184.94,184.78,45.08]
[1760796422071,4.8659,184.92,184.81,4.8685]
[1760796422871,4.8659,184.92,184.78,45.08]
[1760796422872,4.8663,184.9,184.78,49.9491]
[1760796423466,4.8663,184.9,184.8,4.8688]
[1760796424471,7.5868,184.88,184.77,4.8694]
[1760796424671,7.5868,184.88,184.78,45.12]
[1760796424969,4.8661,184.91,184.79,4.8691]
[1760796425174,4.8661,184.91,184.78,45.12]
[1760796425372,2.72,184.92,184.78,45.12]
[1760796425965,7.5857,184.92,184.82,4.8683]
[1760796427566,7.5857,184.92,184.83,62.0]
[1760796427972,4.8651,184.95,184.83,62.0]
[1760796428372,4.80687892,185.0,184.83,62.0]
[1760796428576,2.77,184.98,184.83,62.0]
[1760796428877,4.25514451,184.97,184.83,62.0]
[1760796429177,2.77,184.95,184.83,62.0]
[1760796429374,6.71091052,185.02,184.83,62.0]
[1760796429375,2.77,184.98,184.83,62.0]
[1760796429573,2.77,184.96,184.83,62.0]
[1760796429776,4.25549426,184.95,184.83,62.0]
[1760796430074,2.77,184.98,184.83,62.0]
[1760796430273,2.77,184.96,184.83,62.0]
[1760796430470,2.77,184.94,184.79,4.8688]
[1760796430669,4.25621483,184.93,184.79,4.8688]
[1760796430871,4.25621483,184.92,184.78,5.1]
[1760796431072,2.77,184.9,184.78,5.1]
[1760796431267,2.77,184.9,184.71,0.94187699]
[1760796431268,7.6376,184.85,184.74,4.8701]
[1760796431577,7.6376,184.85,184.75,5.46]
[1760796431977,5.0366602,184.92,184.75,5.46]
[1760796431978,4.8669,184.87,184.75,5.46]
[1760796432380,7.6369,184.87,184.75,5.46]
[1760796432775,2.77,184.92,184.75,4.8699]
[1760796432973,2.77,184.9,184.76,14.12]
[1760796433177,2.77,184.88,184.76,14.12]
[1760796433377,2.77,184.88,184.76,76.12]
[1760796434078,4.8677,184.85,184.76,76.12]
[1760796434676,4.8677,184.85,184.76,80.9895]
[1760796435276,7.6377,184.85,184.76,80.9895]
[1760796435582,4.8679,184.84,184.76,45.2]
[1760796436485,2.77,184.85,184.76,45.2]
[1760796436685,4.867,184.87,184.76,45.2]
[1760796437285,4.8672,184.85,184.76,50.0694]
[1760796438484,4.8672,184.85,184.77,62.0]
[1760796438784,4.8668,184.87,184.77,62.0]
[1760796439980,4.8668,184.87,184.78,4.8689]
[1760796440176,2.87,184.88,184.76,45.2]
[1760796440385,9.7284,184.98,184.76,45.2]
[1760796440386,7.12334047,184.92,184.76,45.2]
[1760796440580,2.87,184.97,184.71,0.94187699]
[1760796440785,2.87,184.88,184.77,45.2]
[1760796441887,7.7367,184.88,184.79,4.8686]
[1760796442090,7.7367,184.88,184.71,0.94187699]
[1760796442091,2.87,184.88,184.71,0.94187699]
[1760796442388,2.87,184.88,184.77,4.8694]
[1760796442589,2.87,184.88,184.78,11.62]
[1760796442886,2.87,184.93,184.78,11.62]
[1760796443084,4.25585157,184.92,184.78,11.62]
[1760796443289,2.87,184.9,184.78,11.62]
[1760796443588,2.87,184.93,184.78,11.62]
[1760796443787,2.87,184.91,184.78,11.62]
[1760796444090,4.8675,184.85,184.78,11.62]
[1760796448394,2.87,184.89,184.78,11.62]
[1760796448591,2.87,184.92,184.78,11.62]
[1760796448790,4.25802129,184.91,184.78,11.62]
[1760796448990,4.25802129,184.9,184.78,11.62]
[1760796449185,2.87,184.87,184.78,11.62]
[1760796450998,4.8674,184.85,184.78,11.62]
[1760796451698,2.87,184.87,184.78,11.62]
[1760796451699,4.8676,184.84,184.78,73.62]
[1760796452200,4.8676,184.84,184.78,11.62]
[1760796452894,2.87,184.9,184.75,4.8698]
[1760796453096,4.26064826,184.89,184.76,22.62]
[1760796453404,2.87,184.87,184.76,22.62]
[1760796453595,4.82475964,184.91,184.76,22.62]
[1760796453797,4.26198731,184.9,184.76,22.62]
[1760796453994,2.87,184.88,184.76,22.62]
[1760796454199,2.87,184.86,184.76,22.62]
[1760796454591,2.87,184.9,184.76,22.62]
[1760796454798,4.26301139,184.89,184.76,22.62]
[1760796454997,2.87,184.87,184.76,84.62]
[1760796455196,14.7681602,184.91,184.76,84.62]
[1760796455396,9.09130842,184.9,184.76,84.62]
[1760796455598,4.26415132,184.89,184.76,84.62]
[1760796455801,4.8676,184.84,184.76,89.4895]
[1760796455999,7.7376,184.84,184.76,89.4895]
[1760796456508,4.8676,184.84,184.77,4.8692]
[1760796457099,4.8676,184.84,184.76,84.62]
[1760796457800,4.83057589,184.9,184.76,84.62]
[1760796458002,9.09710452,184.89,184.71,0.94187699]
[1760796458194,9.09683271,184.88,184.72,9.16]
[1760796458399,2.87,184.86,184.72,9.16]
[1760796458599,2.87,184.84,184.72,9.16]
[1760796459503,2.87,184.81,184.72,9.16]
[1760796460909,4.8693,184.78,184.72,9.16]
[1760796461302,2.87,184.81,184.72,9.16]
[1760796462407,9.7352,184.84,184.72,9.16]
[1760796462608,2.87,184.82,184.72,9.16]
[1760796462798,9.7352,184.84,184.72,9.16]
[1760796462997,2.87,184.82,184.71,0.94187699]
[1760796463202,2.87,184.8,184.71,0.94187699]
[1760796463601,4.26488622,184.79,184.65,62.0]
[1760796463800,2.87,184.77,184.68,0.94199172]
[1760796464199,4.26775414,184.76,184.68,0.94199172]
[1760796464404,2.87,184.77,184.68,0.94199172]
[1760796464605,4.26458198,184.76,184.68,0.94199172]
[1760796464806,2.87,184.77,184.68,0.94199172]
[1760796465001,4.2645807,184.76,184.68,0.94199172]
[1760796465206,2.87,184.77,184.68,0.94199172]
[1760796465508,2.87,184.8,184.68,0.94199172]
[1760796465809,2.87,184.78,184.68,0.94199172]
[1760796466010,2.87,184.76,184.68,0.94199172]
[1760796467111,2.61,184.71,184.68,0.94199172]
[1760796468506,2.61,184.7,184.68,0.94199172]
[1760796470611,2.61,184.69,184.68,0.94199172]
[1760796471214,4.8707,184.72,184.68,0.94199172]
[1760796472122,4.8702,184.74,184.68,0.94199172]
[1760796472715,7.4802,184.74,184.68,0.94199172]
[1760796472920,2.61,184.74,184.68,0.94199172]
[1760796473921,4.8709,184.72,184.68,0.94199172]
[1760796474515,7.4803,184.74,184.68,0.94199172]
[1760796474719,4.8703,184.74,184.68,0.94199172]
[1760796475117,7.4806,184.73,184.68,0.94199172]
[1760796475314,2.61,184.78,184.68,0.94199172]
[1760796476524,25.76377386,184.8,184.68,0.94199172]
[1760796476525,2.61,184.7,184.68,0.94199172]
[1760796476723,2.61,184.78,184.68,0.94199172]
[1760796476927,2.61,184.76,184.68,0.94199172]
[1760796477218,4.8711,184.71,184.68,0.94199172]
[1760796477424,7.4811,184.71,184.68,0.94199172]
[1760796477727,2.61,184.7,184.68,0.94199172]
[1760796479018,4.25159736,184.77,184.65,45.26]
[1760796479224,2.61,184.77,184.65,45.26]
[1760796480024,7.4816,184.69,184.65,45.26]
[1760796480221,7.4816,184.69,184.64,0.94222126]
[1760796480222,9.7399,184.75,184.64,0.94222126]
[1760796480430,9.7399,184.75,184.61,17.98]
[1760796480721,9.7399,184.75,184.61,46.14237435]
[1760796480921,2.61,184.73,184.61,46.14237435]
[1760796481131,2.61,184.75,184.61,46.14237435]
[1760796481429,4.24907007,184.74,184.61,46.14237435]
[1760796481628,4.8728,184.65,184.61,46.14237435]
[1760796482229,2.61,184.68,184.61,46.14237435]
[1760796483323,2.61,184.68,184.62,45.22]
[1760796483922,4.24570463,184.74,184.62,45.22]
[1760796484126,4.24544412,184.73,184.62,45.22]
[1760796484423,9.86651443,184.77,184.62,45.22]
[1760796484621,2.61,184.75,184.62,45.22]
[1760796484822,2.61,184.73,184.62,45.22]
[1760796485129,7.4827,184.65,184.62,45.22]
[1760796487233,4.8727,184.65,184.62,45.22]
[1760796488327,4.873,184.64,184.62,45.22]
[1760796489728,4.2420323,184.72,184.58,7.644e-05]
[1760796489729,2.8,184.63,184.58,7.644e-05]
[1760796489924,2.8,184.63,184.5,3.52]
[1760796490123,4.23987423,184.68,184.5,3.52]
[1760796490329,4.82496399,184.69,184.5,3.52]
[1760796490330,2.8,184.65,184.5,3.52]
[1760796490835,9.7448,184.66,184.5,3.52]
[1760796490836,4.8742,184.59,184.5,3.52]
[1760796491337,4.8735,184.62,184.53,4.8755]
[1760796492636,4.8738,184.61,184.53,4.8755]
[1760796492843,4.8738,184.61,184.53,66.8755]
[1760796493034,4.8738,184.61,184.54,0.94269345]
[1760796493745,4.8738,184.61,184.54,46.16269345]
[1760796494954,4.8741,184.59,184.54,46.16269345]
[1760796495250,7.6741,184.59,184.54,0.94269345]
[1760796495949,4.8741,184.59,184.54,0.94269345]
[1760796496350,4.8741,184.59,184.54,46.16269345]
[1760796496545,4.8741,184.59,184.54,0.94269345]
[1760796496945,4.8737,184.61,184.54,46.16269345]
[1760796497146,4.8737,184.61,184.54,0.94269345]
[1760796497546,4.874,184.6,184.54,0.94269345]
[1760796497847,4.874,184.6,184.55,45.22]
[1760796498248,2.69,184.59,184.55,45.22]
[1760796498451,7.5643,184.59,184.55,45.22]
[1760796498653,7.5643,184.59,184.54,0.94269345]
[1760796498957,7.5643,184.59,184.54,46.16269345]
[1760796499252,4.8743,184.59,184.54,46.16269345]
[1760796499451,4.8743,184.59,184.54,0.94269345]
[1760796499649,4.8743,184.59,184.55,45.22]
[1760796500051,4.8743,184.59,184.54,0.94269345]
[1760796500246,4.8743,184.59,184.55,45.22]
[1760796502754,6.9266527,184.69,184.54,0.94269345]
[1760796502952,9.742,184.71,184.54,0.94269345]
[1760796502953,2.69,184.67,184.54,0.94269345]
[1760796503350,2.69,184.67,184.55,45.22]
[1760796503550,2.69,184.67,184.54,0.94269345]
[1760796503856,2.69,184.69,184.55,45.22]
[1760796504053,2.69,184.67,184.54,0.94269345]
[1760796504449,4.8735,184.62,184.55,50.095]
[1760796504645,2.69,184.65,184.54,0.94269345]
[1760796504851,2.69,184.65,184.55,45.22]
[1760796505251,4.8733,184.63,184.56,4.8747]
[1760796505452,4.8733,184.63,184.56,50.0947]
[1760796505756,4.8733,184.63,184.57,45.22]
[1760796506059,2.69,184.62,184.56,45.2]
[1760796506257,2.69,184.62,184.55,45.22]
[1760796506651,2.69,184.62,184.54,0.94269345]
[1760796506850,4.8745,184.58,184.54,0.94269345]
[1760796507153,7.5645,184.58,184.55,45.2]
[1760796507553,7.5645,184.58,184.54,0.94269345]
[1760796507859,2.69,184.65,184.51,15.4]
[1760796508058,2.69,184.63,184.51,15.4]
[1760796508359,2.69,184.61,184.51,19.06]
[1760796508554,2.69,184.65,184.51,19.06]
[1760796508761,4.24186894,184.64,184.5,0.94292333]
[1760796509054,4.8752,184.55,184.5,0.94292333]
[1760796509252,7.5652,184.55,184.5,0.94292333]
[1760796510462,7.5655,184.54,184.5,0.94292333]
[1760796510857,2.69,184.53,184.5,0.94292333]
[1760796511058,7.5658,184.53,184.5,0.94292333]
[1760796511364,4.8758,184.53,184.5,0.94292333]
[1760796511663,2.69,184.52,184.5,0.94292333]
[1760796512051,2.69,184.56,184.5,0.94292333]
[1760796512968,4.8753,184.55,184.5,0.94292333]
[1760796513262,7.5653,184.55,184.5,0.94292333]
[1760796514057,4.8753,184.55,184.5,0.94292333]
[1760796514258,4.8746,184.58,184.5,62.94292333]
[1760796514462,2.69,184.59,184.5,62.94292333]
[1760796515058,2.69,184.63,184.5,62.94292333]
[1760796515253,4.2366791,184.62,184.5,108.16292333]
[1760796515560,2.69,184.6,184.5,108.16292333]
[1760796515760,14.7823602,184.64,184.5,108.16292333]
[1760796515957,2.69,184.53,184.5,46.16292333]
[1760796516364,4.23525648,184.61,184.5,46.16292333]
[1760796516657,4.23525648,184.6,184.5,46.16292333]
[1760796516960,2.69,184.58,184.5,46.16292333]
[1760796517163,4.79635961,184.63,184.5,46.16292333]
[1760796517359,4.23335337,184.62,184.5,46.16292333]
[1760796517564,2.69,184.6,184.5,46.16292333]
[1760796517858,2.69,184.58,184.37,5.407]
[1760796518054,9.0290105,184.59,184.38,45.22]
[1760796518055,4.23335337,184.57,184.38,45.22]
[1760796518261,4.8772,184.48,184.42,0.94326837]
[1760796518457,2.69,184.5,184.42,0.94326837]
[1760796519663,2.69,184.54,184.42,0.94326837]
[1760796520163,7.5678,184.46,184.42,0.94326837]
[1760796520365,2.69,184.5,184.42,0.94326837]
[1760796522261,7.5666,184.5,184.42,5.82166837]
[1760796522771,2.69,184.5,184.42,5.82166837]
[1760796523466,2.69,184.5,184.42,0.94326837]
[1760796523668,2.69,184.54,184.43,45.24]
[1760796523861,4.8767,184.5,184.43,45.24]
[1760796524067,2.69,184.51,184.43,45.24]
[1760796524971,4.8769,184.49,184.43,45.24]
[1760796525171,4.8769,184.49,184.43,45.26]
[1760796525373,7.5669,184.49,184.43,45.26]
[1760796525574,2.69,184.47,184.42,0.94326837]
[1760796525772,2.69,184.54,184.43,45.26]
[1760796525977,2.69,184.56,184.42,0.94326837]
[1760796526179,4.8774,184.47,184.42,0.94326837]
[1760796526479,2.81,184.52,184.42,0.94326837]
[1760796526872,4.8774,184.47,184.42,0.94326837]
[1760796527173,2.81,184.46,184.42,0.94326837]
[1760796527978,7.6868,184.49,184.42,0.94326837]
[1760796529579,4.8772,184.48,184.42,0.94326837]
[1760796529781,4.8772,184.48,184.42,46.18326837]
[1760796530283,2.81,184.49,184.42,51.06166837]
[1760796531579,4.24108979,184.58,184.42,51.06166837]
[1760796531782,2.81,184.56,184.42,51.06166837]
[1760796531982,2.81,184.59,184.43,4.8781]
[1760796532184,4.24178531,184.58,184.43,4.8781]
[1760796532384,2.81,184.55,184.44,45.26]
[1760796532783,4.8764,184.51,184.44,50.1379]
[1760796534787,4.8764,184.51,184.45,45.24]
[1760796536383,4.8767,184.5,184.46,45.22]
[1760796537691,2.81,184.53,184.46,45.22]
[1760796537887,9.748,184.6,184.45,45.22]
[1760796537888,9.75,184.56,184.45,45.22]
[1760796538088,2.81,184.54,184.45,45.22]
[1760796538289,2.81,184.55,184.45,45.22]
[1760796538490,9.75,184.56,184.45,45.22]
[1760796538689,2.81,184.55,184.45,45.22]
[1760796538890,2.81,184.54,184.45,45.22]
[1760796539089,2.81,184.55,184.45,45.22]
[1760796539285,9.75,184.56,184.45,45.22]
[1760796539790,2.81,184.54,184.45,45.22]
[1760796540782,2.81,184.59,184.45,45.22]
[1760796540985,2.81,184.57,184.42,5.82176837]
[1760796541183,4.24859503,184.56,184.43,45.22]
[1760796541383,4.8771,184.48,184.43,45.22]
[1760796541888,4.8778,184.46,184.42,0.94326837]
[1760796542087,7.6878,184.46,184.42,0.94326837]
[1760796542289,4.8778,184.46,184.42,0.94326837]
[1760796542489,4.877,184.48,184.42,0.94326837]
[1760796544397,7.6874,184.47,184.42,0.94326837]
[1760796544696,7.6874,184.47,184.43,45.22]
[1760796545394,2.89,184.46,184.43,45.22]
[1760796545598,2.89,184.45,184.43,45.22]
[1760796546599,4.8777,184.46,184.43,45.22]
[1760796546991,7.7677,184.46,184.43,45.22]
[1760796547192,9.751,184.54,184.43,45.22]
[1760796547193,4.8779,184.45,184.43,45.22]
[1760796547495,2.89,184.44,184.43,45.22]
[1760796548799,2.89,184.44,184.29,140.38]
[1760796548800,2.89,184.49,184.29,5.407]
[1760796548998,2.89,184.49,184.31,5.407]
[1760796549195,2.89,184.47,184.33,0.94369043]
[1760796549894,2.89,184.45,184.33,0.94369043]
[1760796550303,2.89,184.41,184.33,0.94369043]
[1760796550805,2.89,184.41,184.33,5.82449043]
[1760796551395,4.8793,184.4,184.33,0.94369043]
[1760796551997,2.89,184.45,184.33,0.94369043]
[1760796552301,4.70670209,184.48,184.33,0.94369043]
[1760796552302,2.89,184.43,184.33,0.94369043]
[1760796553812,2.89,184.36,184.33,0.94369043]
[1760796554104,2.89,184.36,184.29,112.1019]
[1760796554404,2.89,184.36,184.3,0.94398481]
[1760796555398,7.7707,184.34,184.3,0.94398481]
[1760796555597,2.89,184.33,184.3,0.94398481]
[1760796557302,2.85,184.4,184.24,147.12814751]
[1760796557505,4.23527421,184.39,184.24,147.12814751]
[1760796557702,2.85,184.4,184.25,0.94412567]
[1760796558005,80.14093897,184.39,184.11,13.43739026]
[1760796558203,80.9556602,184.35,184.03,29.67739026]
[1760796558397,4.23523897,184.34,184.03,29.67739026]
[1760796558604,2.85,184.21,184.04,5.58]
[1760796559309,2.85,184.21,184.11,4.8867]
[1760796559503,2.85,184.21,184.12,45.26]
[1760796559808,2.85,184.25,184.13,45.28]
[1760796560198,4.8826,184.27,184.13,45.28]
[1760796560402,2.85,184.26,184.13,45.28]
[1760796560906,2.85,184.26,184.14,62.0]
[1760796561105,2.85,184.34,184.14,62.0]
[1760796561308,16.47051052,184.38,184.14,62.0]
[1760796561309,4.8817,184.31,184.2,4.8842]
[1760796561503,4.8817,184.31,184.21,45.34]
[1760796561700,4.8817,184.31,184.22,45.34]
[1760796561908,2.85,184.32,184.22,43.08]
[1760796562208,2.85,184.41,184.22,43.08]
[1760796562412,7.7306,184.35,184.24,4.8833]
[1760796562607,7.7306,184.35,184.22,43.08]
[1760796562808,2.85,184.35,184.22,43.08]
[1760796563308,2.85,184.41,184.22,43.08]
[1760796563702,4.8796,184.39,184.29,4.882]
[1760796563903,4.8796,184.39,184.3,45.38]
[1760796564107,2.85,184.41,184.3,45.38]
[1760796564405,2.85,184.41,184.3,107.38]
[1760796565015,2.85,184.41,184.3,45.38]
[1760796565016,4.8799,184.37,184.3,45.38]
[1760796565512,4.24304747,184.45,184.3,45.38]
[1760796565816,2.85,184.43,184.27,41.46]
[1760796566111,4.24304747,184.42,184.26,41.46]
[1760796566410,4.8807,184.34,184.27,31.8]
[1760796567715,4.8812,184.33,184.27,31.8]
[1760796567911,4.2416945,184.39,184.27,31.8]
[1760796568108,4.2416945,184.38,184.27,31.8]
[1760796568307,4.8815,184.32,184.27,31.8]
[1760796568509,2.85,184.4,184.27,31.8]
[1760796568705,2.85,184.38,184.27,31.8]
[1760796568913,2.85,184.36,184.27,31.8]
[1760796569112,14.7938602,184.42,184.27,31.8]
[1760796569313,4.23741811,184.41,184.27,31.8]
[1760796569513,7.7317,184.31,184.27,31.8]
[1760796569912,4.23741811,184.38,184.27,31.8]
[1760796570110,90.6875602,184.42,184.21,4.8839]
[1760796570111,2.85,184.36,184.21,4.8839]
[1760796570310,4.8818,184.3,184.21,4.8839]
[1760796570507,2.85,184.33,184.21,4.8839]
[1760796570707,2.85,184.33,184.22,4.8837]
[1760796570911,2.85,184.37,184.2,45.36]
[1760796571115,4.8812,184.33,184.2,45.36]
[1760796571317,2.85,184.37,184.24,4.8831]
[1760796571612,2.85,184.37,184.2,45.36]
[1760796571818,4.8804,184.36,184.2,45.36]
[1760796572018,4.8804,184.36,184.27,4.8823]
[1760796572216,4.8804,184.36,184.28,43.5]
[1760796573015,4.8796,184.39,184.28,43.5]
[1760796573216,2.85,184.41,184.28,43.5]
[1760796574126,4.8791,184.4,184.3,4.8816]
[1760796574725,4.8791,184.4,184.31,62.0]
[1760796576120,4.8786,184.42,184.31,62.0]
[1760796576315,2.85,184.45,184.31,62.0]
[1760796576721,4.8788,184.42,184.32,4.8812]
[1760796577120,4.8793,184.4,184.32,4.8812]
[1760796577326,2.85,184.45,184.22,94.79114292]
[1760796577624,4.24250873,184.44,184.22,94.79114292]
[1760796577827,2.85,184.36,184.23,45.36]
[1760796578730,4.8805,184.35,184.24,4.8833]
[1760796578921,2.85,184.42,184.23,45.36]
[1760796579125,4.24347713,184.41,184.23,45.36]
[1760796579325,2.85,184.4,184.23,45.36]
[1760796579618,4.24354488,184.39,184.22,94.79114292]
[1760796579823,2.85,184.37,184.22,94.79114292]
[1760796580025,5.0366602,184.41,184.22,94.79114292]
[1760796580229,2.85,184.38,184.22,94.79114292]
[1760796580436,2.85,184.35,184.11,62.0]
[1760796580721,4.8836,184.24,184.11,62.0]
[1760796580927,4.8836,184.24,184.12,45.44]
[1760796581124,2.85,184.27,184.12,45.44]
[1760796581723,2.85,184.27,184.13,45.44]
[1760796581930,2.85,184.27,184.16,4.8852]
[1760796582428,7.7326,184.27,184.17,45.44]
[1760796582623,7.7326,184.27,184.16,4.8852]
[1760796582624,4.8826,184.27,184.18,4.8849]
[1760796582824,2.85,184.31,184.19,45.44]
[1760796583221,4.882,184.29,184.2,45.44]
[1760796583732,4.882,184.29,184.21,45.46]
[1760796583931,4.882,184.29,184.09,85.7999]
[1760796584128,4.882,184.29,184.1,45.44]
[1760796584320,4.882,184.29,184.09,85.7999]
[1760796584321,4.882,184.29,184.11,45.44]
[1760796584630,4.882,184.29,184.09,9.7747]
[1760796584831,4.882,184.29,184.12,45.44]
[1760796586033,4.882,184.29,184.2,4.8844]
[1760796586233,7.7315,184.31,184.21,45.44]
[1760796586434,7.7315,184.31,184.16,62.0]
[1760796586627,2.85,184.31,184.17,45.44]
[1760796586831,6.71091052,184.4,184.17,45.44]
[1760796586832,6.9198953,184.36,184.17,45.44]
[1760796587031,4.881,184.33,184.18,45.44]
[1760796587232,7.551,184.33,184.12,9.7727]
[1760796587433,7.551,184.33,184.13,45.44]
[1760796588030,7.551,184.33,184.23,4.8834]
[1760796588225,7.551,184.33,184.24,26.94]
[1760796588431,7.551,184.33,184.25,37.78]
[1760796588935,7.551,184.33,184.26,45.32]
[1760796589129,4.8815,184.32,184.26,45.32]
[1760796589537,2.67,184.33,184.26,45.32]
[1760796589735,4.8817,184.31,184.15,62.0]
[1760796589939,4.8817,184.31,184.16,45.44]
[1760796590939,4.8817,184.31,184.21,4.8839]
[1760796591538,7.551,184.33,184.23,4.8834]
[1760796591736,7.551,184.33,184.23,41.14]
[1760796591937,2.67,184.33,184.23,41.14]
[1760796592643,2.67,184.37,184.27,4.8824]
[1760796592938,7.55,184.37,184.28,4.8821]
[1760796593240,4.24720428,184.36,184.29,62.0]
[1760796593543,7.55,184.37,184.18,92.59375077]
[1760796593544,1.08,184.37,184.18,92.59375077]
[1760796593738,5.0366602,184.34,184.18,92.59375077]
[1760796594043,2.67,184.28,184.18,92.59375077]
[1760796594741,2.67,184.28,184.18,97.47865077]
[1760796595040,6.71091052,184.36,184.18,97.47865077]
[1760796595041,4.8815,184.31,184.18,92.59375077]
[1760796595539,2.67,184.32,184.18,92.59375077]
[1760796596037,2.67,184.36,184.18,92.59375077]
[1760796596235,4.24949202,184.35,184.18,92.59375077]
[1760796596431,2.67,184.36,184.26,4.8826]
[1760796596631,2.67,184.36,184.27,45.52]
[1760796597031,4.2513462,184.35,184.27,45.52]
[1760796597230,2.67,184.36,184.18,92.59375077]
[1760796597431,4.2523017,184.35,184.19,45.54]
[1760796597634,4.881,184.34,184.24,4.8831]
[1760796597840,4.881,184.34,184.19,45.54]
[1760796597841,2.67,184.33,184.19,45.54]
[1760796598040,7.5512,184.33,184.23,4.8836]
[1760796599842,4.8815,184.32,184.24,45.52]
[1760796600042,4.8815,184.32,184.24,107.52]
[1760796600440,4.8818,184.3,184.24,45.52]
[1760796600643,7.5518,184.3,184.23,45.52]
[1760796600840,2.67,184.3,184.23,45.52]
[1760796601035,7.5518,184.3,184.23,45.52]
[1760796601340,5.0366602,184.39,184.23,45.52]
[1760796601543,4.25819026,184.38,184.29,4.8819]
[1760796601746,2.67,184.39,184.3,45.56]
[1760796602044,2.67,184.39,184.18,92.59375077]
[1760796602045,2.67,184.39,184.31,45.56]
[1760796602238,4.25771222,184.38,184.3,45.56]
[1760796602439,4.8797,184.38,184.3,43.28]
[1760796602741,5.0366602,184.46,184.3,44.36]
[1760796602937,4.8762,184.51,184.3,43.28]
[1760796603243,2.67,184.52,184.31,75.9323]
[1760796603445,4.25692717,184.51,184.34,62.0]
[1760796603740,2.67,184.52,184.34,62.0]
[1760796603946,2.67,184.52,184.31,13.43739026]
[1760796604140,2.67,184.52,184.43,4.8783]
[1760796604443,2.67,184.52,184.32,23.19979026]
[1760796604444,2.67,184.52,184.44,8.66]
[1760796604644,2.67,184.52,184.45,8.66]
[1760796604844,2.67,184.52,184.45,8.22]
[1760796606942,2.67,184.52,184.46,62.0]
[1760796608843,4.8753,184.55,184.46,62.0]